[Event "Queens Festival Europe 2022"]
[Site "Tornelo"]
[Date "2022.06.19"]
[Round "8.1"]
[White "Rybackova, Lucie"]
[Black "Vicze, Zsofia"]
[Result "1/2-1/2"]
[ECO "D36"]
[WhiteElo "1696"]
[BlackElo "1749"]
[Annotator "NA RC"]
[PlyCount "207"]
[EventDate "2022.06.19"]
[EventType "swiss"]
[EventCountry "NET"]
[SourceTitle "playchess.com"]
[Source "ChessBase"]
[SourceQuality "1"]
[TimeControl "180+2"]

1. d4 {[%emt 0:00:02]} d5 {[%emt 0:00:04]} 2. c4 {[%emt 0:00:02]} e6 {[%emt 0:00:02]} 3. Nc3 {[%emt 0:00:02]} Nf6 {[%emt 0:00:02]} 4. cxd5 {[%emt 0:00:02]} exd5 {[%emt 0:00:02]} 5. Bg5 {[%emt 0:00:02]} c6 {[%emt 0:00:02]} 6. Qc2 {[%emt 0:00:03]} Nbd7 {[%emt 0:00:03]} 7. Nf3 {[%emt 0:00:06]} Bd6 {[%emt 0:00:12]} 8. e3 {[%emt 0:00:03]} O-O {[%emt 0:00:02]} 9. Bd3 {[%emt 0:00:02]} h6 {[%emt 0:00:03]} 10. Bh4 {[%emt 0:00:04]} Re8 {[%emt 0:00:02]} 11. O-O {[%emt 0:00:04]} Nf8 {[%emt 0:00:04]} 12. a3 {[%emt 0:00:06]} Bg4 {[%emt 0:00:03]} 13. Nd2 {[%emt 0:00:11]} Be7 {[%emt 0:00:30]} 14. b4 {[%emt 0:00:25]} N6d7 {[%emt 0:00:04]} 15. Bxe7 {[%emt 0:00:04]} Qxe7 {[%emt 0:00:02]} 16. Na4 {[%emt 0:00:07]} Rac8 {[%emt 0:00:14]} 17. Nc5 {[%emt 0:00:06]} Nxc5 {[%emt 0:00:03]} 18. Qxc5 {[%emt 0:00:03]} a6 {[%emt 0:00:10]} 19. Rab1 {[%emt 0:00:04]} Nd7 {[%emt 0:00:20]} 20. Qxe7 {[%emt 0:00:04]} Rxe7 {[%emt 0:00:02]} 21. Nb3 {[%emt 0:00:02]} g6 {[%emt 0:00:18]} 22. Nc5 {[%emt 0:00:03]} Nxc5 {[%emt 0:00:04]} 23. bxc5 {[%emt 0:00:02]} Rb8 {[%emt 0:00:02]} 24. Bxa6 {[%emt 0:00:05]} Ra8 {[%emt 0:00:05]} 25. Bxb7 {[%emt 0:00:02]} Rxa3 {[%emt 0:00:02]} 26. Bxc6 {[%emt 0:00:02]} Be6 {[%emt 0:00:01]} 27. Rb8+ {[%emt 0:00:05]} Kg7 {[%emt 0:00:03]} 28. Rd8 {[%emt 0:00:03]} Bg4 {[%emt 0:00:09]} 29. Bxd5 {[%emt 0:00:06]} Be2 {[%emt 0:00:01]} 30. Re1 {[%emt 0:00:03]} h5 {[%emt 0:00:06]} 31. h3 {[%emt 0:00:02]} Bb5 {[%emt 0:00:03]} 32. Bf3 {[%emt 0:00:11]} Rd3 {[%emt 0:00:05]} 33. Be2 {[%emt 0:00:04]} Rb3 {[%emt 0:00:02]} 34. Bxb5 {[%emt 0:00:02]} Rxb5 {[%emt 0:00:01]} 35. c6 {[%emt 0:00:08]} Rb4 {[%emt 0:00:04]} 36. d5 {[%emt 0:00:07]} Rc7 {[%emt 0:00:07]} 37. Rc1 {[%emt 0:00:05]} Rb6 {[%emt 0:00:02]} 38. e4 {[%emt 0:00:06]} Kf6 {[%emt 0:00:04]} 39. Rd7 {[%emt 0:00:04]} Rxd7 {[%emt 0:00:07]} 40. cxd7 {[%emt 0:00:02]} Ke7 {[%emt 0:00:02]} 41. Rc6 {[%emt 0:00:07]} Rb1+ {[%emt 0:00:09]} 42. Kh2 {[%emt 0:00:03]} Kxd7 {[%emt 0:00:01]} 43. Rf6 {[%emt 0:00:02]} Ke7 {[%emt 0:00:03]} 44. e5 {[%emt 0:00:02]} Re1 {[%emt 0:00:07]} 45. d6+ {[%emt 0:00:06]} Ke8 {[%emt 0:00:02]} 46. f4 {[%emt 0:00:03]} g5 {[%emt 0:00:04]} 47. g3 {[%emt 0:00:06]} Re2+ {[%emt 0:00:03]} 48. Kg1 {[%emt 0:00:02]} h4 {[%emt 0:00:04]} 49. gxh4 {[%emt 0:00:02]} gxf4 {[%emt 0:00:02]} 50. Rf5 {[%emt 0:00:07]} f3 {[%emt 0:00:06]} 51. h5 {[%emt 0:00:07]} Re4 {[%emt 0:00:02]} 52. Kf2 {[%emt 0:00:03]} Rh4 {[%emt 0:00:02]} 53. Kxf3 {[%emt 0:00:03]} Rxh3+ {[%emt 0:00:02]} 54. Kg4 {[%emt 0:00:02]} Rh1 {[%emt 0:00:02]} 55. Rf6 {[%emt 0:00:03]} Rg1+ {[%emt 0:00:05]} 56. Kf4 {[%emt 0:00:03]} Rg2 {[%emt 0:00:10]} 57. h6 {[%emt 0:00:03]} Rg1 {[%emt 0:00:06]} 58. h7 {[%emt 0:00:05]} Rh1 {[%emt 0:00:02]} 59. d7+ {[%emt 0:00:02]} Kxd7 {[%emt 0:00:04]} 60. Rxf7+ {[%emt 0:00:01]} Ke6 {[%emt 0:00:03]} 61. Rg7 {[%emt 0:00:09]} Rh2 {[%emt 0:00:03]} 62. Ra7 {[%emt 0:00:22]} Rh1 {[%emt 0:00:03]} 63. Kg5 {[%emt 0:00:07]} Kxe5 {[%emt 0:00:03]} 64. Kg6 {[%emt 0:00:01]} Ke6 {[%emt 0:00:01]} 65. Ra8 {[%emt 0:00:03]} Rg1+ {[%emt 0:00:02]} 66. Kh5 {[%emt 0:00:04]} Rh1+ {[%emt 0:00:04]} 67. Kg6 {[%emt 0:00:02]} Rg1+ {[%emt 0:00:02]} 68. Kh6 {[%emt 0:00:03]} Rh1+ {[%emt 0:00:03]} 69. Kg5 {[%emt 0:00:02]} Rg1+ {[%emt 0:00:01]} 70. Kh6 {[%emt 0:00:02]} Rh1+ {[%emt 0:00:02]} 71. Kg7 {[%emt 0:00:02]} Rg1+ {[%emt 0:00:01]} 72. Kh8 {[%emt 0:00:01]} Kf7 {[%emt 0:00:02]} 73. Ra7+ {[%emt 0:00:02]} Kf6 {[%emt 0:00:02]} 74. Rd7 {[%emt 0:00:02]} Rg2 {[%emt 0:00:02]} 75. Rd4 {[%emt 0:00:02]} Rg1 {[%emt 0:00:02]} 76. Rf4+ {[%emt 0:00:01]} Ke7 {[%emt 0:00:02]} 77. Rf5 {[%emt 0:00:03]} Rg2 {[%emt 0:00:02]} 78. Re5+ {[%emt 0:00:02]} Kf7 {[%emt 0:00:03]} 79. Ra5 {[%emt 0:00:02]} Rg1 {[%emt 0:00:02]} 80. Ra8 {[%emt 0:00:02]} Kf6 {[%emt 0:00:02]} 81. Rg8 {[%emt 0:00:02]} Rh1 {[%emt 0:00:02]} 82. Rf8+ {[%emt 0:00:04]} Ke7 {[%emt 0:00:02]} 83. Rf5 {[%emt 0:00:03]} Rg1 {[%emt 0:00:03]} 84. Rh5 {[%emt 0:00:04]} Rg2 {[%emt 0:00:01]} 85. Rh6 {[%emt 0:00:03]} Rg1 {[%emt 0:00:01]} 86. Ra6 {[%emt 0:00:02]} Kf7 {[%emt 0:00:02]} 87. Ra7+ {[%emt 0:00:01]} Kf8 {[%emt 0:00:03]} 88. Rb7 {[%emt 0:00:02]} Rg2 {[%emt 0:00:02]} 89. Rc7 {[%emt 0:00:03]} Rg1 {[%emt 0:00:01]} 90. Rd7 {[%emt 0:00:01]} Rg2 {[%emt 0:00:02]} 91. Rd8+ {[%emt 0:00:02]} Kf7 {[%emt 0:00:02]} 92. Rg8 {[%emt 0:00:02]} Rh2 {[%emt 0:00:01]} 93. Rg3 {[%emt 0:00:02]} Rh1 {[%emt 0:00:02]} 94. Rg4 {[%emt 0:00:02]} Rh2 {[%emt 0:00:03]} 95. Rg3 {[%emt 0:00:02]} Rh1 {[%emt 0:00:01]} 96. Rg2 {[%emt 0:00:01]} Rh3 {[%emt 0:00:02]} 97. Rf2+ {[%emt 0:00:01]} Ke7 {[%emt 0:00:02]} 98. Kg7 {[%emt 0:00:03]} Rg3+ {[%emt 0:00:02]} 99. Kh6 {[%emt 0:00:02]} Rh3+ {[%emt 0:00:01]} 100. Kg6 {[%emt 0:00:01]} Rg3+ {[%emt 0:00:02]} 101. Kf5 {[%emt 0:00:03]} Rh3 {[%emt 0:00:02]} 102. Kg6 {[%emt 0:00:02]} Rg3+ {[%emt 0:00:01]} 103. Kh5 {[%emt 0:00:02]} Rh3+ {[%emt 0:00:01]} 104. Kg6 {[%emt 0:00:02]} 1/2-1/2

[Event "Queens Festival Europe 2022"]
[Site "Tornelo"]
[Date "2022.06.19"]
[Round "8.2"]
[White "Ibrahimova, Sabina"]
[Black "Ismayil, Malak"]
[Result "0-1"]
[ECO "C45"]
[WhiteElo "2146"]
[BlackElo "2001"]
[Annotator "NA RC"]
[PlyCount "66"]
[EventDate "2022.06.19"]
[EventType "swiss"]
[EventCountry "NET"]
[SourceTitle "playchess.com"]
[Source "ChessBase"]
[SourceQuality "1"]
[TimeControl "180+2"]

1. e4 {[%emt 0:00:02]} e5 {[%emt 0:00:05]} 2. Nf3 {[%emt 0:00:02]} Nc6 {[%emt 0:00:02]} 3. d4 {[%emt 0:00:03]} exd4 {[%emt 0:00:02]} 4. Nxd4 {[%emt 0:00:02]} Bc5 {[%emt 0:00:03]} 5. Nb3 {[%emt 0:00:03]} Bb6 {[%emt 0:00:02]} 6. Nc3 {[%emt 0:00:02]} d6 {[%emt 0:00:03]} 7. Qe2 {[%emt 0:00:06]} Be6 {[%emt 0:00:13]} 8. Bd2 {[%emt 0:00:08]} Qd7 {[%emt 0:00:02]} 9. O-O-O {[%emt 0:00:07]} O-O-O {[%emt 0:00:02]} 10. Be3 {[%emt 0:00:13]} f6 {[%emt 0:00:11]} 11. Nc5 {[%emt 0:00:16]} Bxc5 {[%emt 0:00:12]} 12. Bxc5 {[%emt 0:00:02]} Qf7 {[%emt 0:00:02]} 13. Be3 {[%emt 0:00:11]} Nge7 {[%emt 0:00:04]} 14. f4 {[%emt 0:00:23]} f5 {[%emt 0:00:05]} 15. g4 {[%emt 0:00:06]} g6 {[%emt 0:00:13]} 16. h3 {[%emt 0:00:10]} fxe4 {[%emt 0:00:19]} 17. Nxe4 {[%emt 0:00:06]} h6 {[%emt 0:00:07]} 18. Bg2 {[%emt 0:00:22]} Nd5 {[%emt 0:00:02]} 19. Rhf1 {[%emt 0:00:11]} Ndb4 {[%emt 0:00:10]} 20. b3 {[%emt 0:00:07]} Nxa2+ {[%emt 0:00:04]} 21. Kb2 {[%emt 0:00:02]} Nab4 {[%emt 0:00:02]} 22. c4 {[%emt 0:00:28]} Na6 {[%emt 0:00:22]} 23. f5 {[%emt 0:00:05]} gxf5 {[%emt 0:00:08]} 24. gxf5 {[%emt 0:00:03]} Bxf5 {[%emt 0:00:08]} 25. Ng3 {[%emt 0:00:17]} Qg7+ {[%emt 0:00:03]} 26. Ka3 {[%emt 0:00:02]} Qxg3 {[%emt 0:00:08]} 27. Rxf5 {[%emt 0:00:04]} Rhe8 {[%emt 0:00:02]} 28. Rf3 {[%emt 0:00:04]} Qe5 {[%emt 0:00:04]} 29. Qd2 {[%emt 0:00:03]} Nab4 {[%emt 0:00:07]} 30. Qd3 {[%emt 0:00:10]} Qa5+ {[%emt 0:00:06]} 31. Kb2 {[%emt 0:00:02]} Nxd3+ {[%emt 0:00:03]} 32. Rxd3 {[%emt 0:00:02]} Ne5 {[%emt 0:00:03]} 33. Rd5 {[%emt 0:00:02]} Qxd5 {[%emt 0:00:20]} 0-1

[Event "Queens Festival Europe 2022"]
[Site "Tornelo"]
[Date "2022.06.19"]
[Round "8.2"]
[White "Sava, Ana-Maria"]
[Black "Mammadova, Aysel"]
[Result "0-1"]
[ECO "C65"]
[WhiteElo "1916"]
[BlackElo "1893"]
[Annotator "NA RC"]
[PlyCount "67"]
[EventDate "2022.06.19"]
[EventType "swiss"]
[EventCountry "NET"]
[SourceTitle "playchess.com"]
[Source "ChessBase"]
[SourceQuality "1"]
[TimeControl "180+2"]

1. e4 {[%emt 0:00:02]} e5 {[%emt 0:00:05]} 2. Nf3 {[%emt 0:00:02]} Nc6 {[%emt 0:00:02]} 3. Bb5 {[%emt 0:00:02]} Nf6 {[%emt 0:00:03]} 4. O-O {[%emt 0:00:03]} Bc5 {[%emt 0:00:02]} 5. Bxc6 {[%emt 0:00:09]} dxc6 {[%emt 0:00:03]} 6. Nc3 {[%emt 0:00:03]} Qe7 {[%emt 0:00:10]} 7. h3 {[%emt 0:00:03]} O-O {[%emt 0:00:03]} 8. a3 {[%emt 0:00:04]} Bd7 {[%emt 0:00:04]} 9. Re1 {[%emt 0:00:05]} Rad8 {[%emt 0:00:04]} 10. Qe2 {[%emt 0:00:06]} Nh5 {[%emt 0:00:09]} 11. d3 {[%emt 0:00:04]} g6 {[%emt 0:00:10]} 12. Bh6 {[%emt 0:00:04]} Ng7 {[%emt 0:00:02]} 13. Rad1 {[%emt 0:00:04]} f5 {[%emt 0:00:02]} 14. exf5 {[%emt 0:00:05]} Rxf5 {[%emt 0:00:07]} 15. d4 {[%emt 0:00:27]} Bb6 {[%emt 0:00:07]} 16. Qc4+ {[%emt 0:00:04]} Be6 {[%emt 0:00:05]} 17. d5 {[%emt 0:00:22]} cxd5 {[%emt 0:00:07]} 18. Nxd5 {[%emt 0:01:07]} Qf7 {[%emt 0:00:08]} 19. Nxb6 {[%emt 0:00:02]} Rxd1 {[%emt 0:00:23]} 20. Rxd1 {[%emt 0:00:07]} Bxc4 {[%emt 0:00:03]} 21. Rd8+ {[%emt 0:00:03]} Ne8 {[%emt 0:00:02]} 22. Nxc4 {[%emt 0:00:02]} Qxc4 {[%emt 0:00:03]} 23. Rxe8+ {[%emt 0:00:02]} Kf7 {[%emt 0:00:03]} 24. Nxe5+ {[%emt 0:00:20]} Rxe5 {[%emt 0:00:02]} 25. Rxe5 {[%emt 0:00:02]} Qxc2 {[%emt 0:00:03]} 26. Bg5 {[%emt 0:00:05]} Qxb2 {[%emt 0:00:06]} 27. Re7+ {[%emt 0:00:01]} Kf8 {[%emt 0:00:03]} 28. Rxc7 {[%emt 0:00:02]} Qa1+ {[%emt 0:00:02]} 29. Kh2 {[%emt 0:00:02]} Qe5+ {[%emt 0:00:02]} 30. g3 {[%emt 0:00:02]} Qxc7 {[%emt 0:00:03]} 31. Bf4 {[%emt 0:00:01]} Qc2 {[%emt 0:00:02]} 32. Kg2 {[%emt 0:00:02]} b5 {[%emt 0:00:03]} 33. Bd6+ {[%emt 0:00:02]} Kf7 {[%emt 0:00:03]} 34. Bb4 {[%emt 0:00:03]} 0-1

[Event "Queens Festival Europe 2022"]
[Site "Tornelo"]
[Date "2022.06.19"]
[Round "8.2"]
[White "Subramanian, Anusha"]
[Black "Stadlinger, Lea"]
[Result "0-1"]
[ECO "D35"]
[WhiteElo "1671"]
[BlackElo "1723"]
[Annotator "NA RC"]
[PlyCount "140"]
[EventDate "2022.06.19"]
[EventType "swiss"]
[EventCountry "NET"]
[SourceTitle "playchess.com"]
[Source "ChessBase"]
[SourceQuality "1"]
[TimeControl "180+2"]

1. d4 {[%emt 0:00:02]} d5 {[%emt 0:00:05]} 2. c4 {[%emt 0:00:02]} e6 {[%emt 0:00:02]} 3. Nc3 {[%emt 0:00:01]} Nf6 {[%emt 0:00:01]} 4. cxd5 {[%emt 0:00:01]} exd5 {[%emt 0:00:03]} 5. Bg5 {[%emt 0:00:02]} c6 {[%emt 0:00:03]} 6. Nf3 {[%emt 0:00:05]} Bf5 {[%emt 0:00:06]} 7. e3 {[%emt 0:00:02]} Be7 {[%emt 0:00:03]} 8. Bd3 {[%emt 0:00:03]} Bxd3 {[%emt 0:00:05]} 9. Qxd3 {[%emt 0:00:00]} O-O {[%emt 0:00:02]} 10. O-O {[%emt 0:00:02]} Nbd7 {[%emt 0:00:07]} 11. a3 {[%emt 0:00:09]} Ne4 {[%emt 0:00:15]} 12. Nxe4 {[%emt 0:00:23]} dxe4 {[%emt 0:00:07]} 13. Bxe7 {[%emt 0:00:24]} Qxe7 {[%emt 0:00:10]} 14. Qe2 {[%emt 0:00:03]} exf3 {[%emt 0:00:02]} 15. Qxf3 {[%emt 0:00:00]} Nf6 {[%emt 0:00:04]} 16. b4 {[%emt 0:00:03]} Qe4 {[%emt 0:00:04]} 17. Qe2 {[%emt 0:00:04]} Rad8 {[%emt 0:00:05]} 18. Rac1 {[%emt 0:00:03]} Rxd4 {[%emt 0:00:07]} 19. Rfe1 {[%emt 0:00:22]} Rd7 {[%emt 0:00:13]} 20. Rc4 {[%emt 0:00:03]} Qe6 {[%emt 0:00:05]} 21. e4 {[%emt 0:00:07]} Rfd8 {[%emt 0:00:04]} 22. e5 {[%emt 0:00:03]} Nd5 {[%emt 0:00:11]} 23. Rh4 {[%emt 0:00:10]} Nb6 {[%emt 0:00:16]} 24. Qe4 {[%emt 0:00:08]} g6 {[%emt 0:00:04]} 25. Qf3 {[%emt 0:00:28]} Rd3 {[%emt 0:00:10]} 26. Qe2 {[%emt 0:00:09]} Rxa3 {[%emt 0:00:03]} 27. f4 {[%emt 0:00:04]} Rad3 {[%emt 0:00:06]} 28. Rf1 {[%emt 0:00:04]} Rd2 {[%emt 0:00:04]} 29. Qf3 {[%emt 0:00:04]} R8d3 {[%emt 0:00:06]} 30. Qe4 {[%emt 0:00:01]} Qd5 {[%emt 0:00:09]} 31. Qxd5 {[%emt 0:00:20]} Rxd5 {[%emt 0:00:06]} 32. f5 {[%emt 0:00:09]} Rxe5 {[%emt 0:00:02]} 33. f6 {[%emt 0:00:01]} Nd5 {[%emt 0:00:03]} 34. Rg4 {[%emt 0:00:05]} Re6 {[%emt 0:00:03]} 35. b5 {[%emt 0:00:10]} Rxf6 {[%emt 0:00:04]} 36. bxc6 {[%emt 0:00:04]} Rxf1+ {[%emt 0:00:04]} 37. Kxf1 {[%emt 0:00:00]} bxc6 {[%emt 0:00:03]} 38. Rg3 {[%emt 0:00:06]} a5 {[%emt 0:00:04]} 39. Ra3 {[%emt 0:00:01]} Nb4 {[%emt 0:00:07]} 40. Rxa5 {[%emt 0:00:02]} Rc2 {[%emt 0:00:02]} 41. Ra4 {[%emt 0:00:02]} c5 {[%emt 0:00:02]} 42. Ra8+ {[%emt 0:00:03]} Kg7 {[%emt 0:00:02]} 43. Rc8 {[%emt 0:00:00]} Nd3 {[%emt 0:00:02]} 44. h4 {[%emt 0:00:05]} c4 {[%emt 0:00:02]} 45. g4 {[%emt 0:00:02]} c3 {[%emt 0:00:03]} 46. Rd8 {[%emt 0:00:02]} Ne5 {[%emt 0:00:04]} 47. Rd5 {[%emt 0:00:05]} Nxg4 {[%emt 0:00:02]} 48. Rd4 {[%emt 0:00:02]} Ne3+ {[%emt 0:00:03]} 49. Ke1 {[%emt 0:00:01]} Nf5 {[%emt 0:00:08]} 50. Rc4 {[%emt 0:00:02]} h6 {[%emt 0:00:06]} 51. Kd1 {[%emt 0:00:03]} Rh2 {[%emt 0:00:04]} 52. Rxc3 {[%emt 0:00:03]} Rxh4 {[%emt 0:00:01]} 53. Rf3 {[%emt 0:00:01]} Rh2 {[%emt 0:00:02]} 54. Ke1 {[%emt 0:00:02]} h5 {[%emt 0:00:01]} 55. Kf1 {[%emt 0:00:01]} Kf6 {[%emt 0:00:02]} 56. Kg1 {[%emt 0:00:01]} Ra2 {[%emt 0:00:01]} 57. Rf4 {[%emt 0:00:02]} g5 {[%emt 0:00:02]} 58. Rb4 {[%emt 0:00:02]} Kg6 {[%emt 0:00:02]} 59. Rb6+ {[%emt 0:00:02]} f6 {[%emt 0:00:02]} 60. Rb3 {[%emt 0:00:02]} g4 {[%emt 0:00:02]} 61. Rc3 {[%emt 0:00:01]} Kg5 {[%emt 0:00:02]} 62. Rb3 {[%emt 0:00:02]} h4 {[%emt 0:00:02]} 63. Rc3 {[%emt 0:00:01]} g3 {[%emt 0:00:03]} 64. Rb3 {[%emt 0:00:02]} Ng7 {[%emt 0:00:04]} 65. Rc3 {[%emt 0:00:01]} f5 {[%emt 0:00:02]} 66. Rb3 {[%emt 0:00:01]} Kg4 {[%emt 0:00:02]} 67. Rb4+ {[%emt 0:00:03]} f4 {[%emt 0:00:02]} 68. Rb3 {[%emt 0:00:01]} h3 {[%emt 0:00:02]} 69. Rc3 {[%emt 0:00:02]} Ra1+ {[%emt 0:00:01]} 70. Rc1 {[%emt 0:00:03]} Rxc1# {[%emt 0:00:02]} 0-1

[Event "Queens Festival Europe 2022"]
[Site "Tornelo"]
[Date "2022.06.19"]
[Round "8.2"]
[White "Valiyeva, Asnad"]
[Black "Aydogan, Arya"]
[Result "1-0"]
[ECO "D02"]
[WhiteElo "1237"]
[BlackElo "1409"]
[Annotator "NA RC"]
[PlyCount "167"]
[EventDate "2022.06.19"]
[EventType "swiss"]
[EventCountry "NET"]
[SourceTitle "playchess.com"]
[Source "ChessBase"]
[SourceQuality "1"]
[TimeControl "180+2"]

1. d4 {[%emt 0:00:02]} d5 {[%emt 0:00:04]} 2. Bf4 {[%emt 0:00:02]} Bf5 {[%emt 0:00:02]} 3. e3 {[%emt 0:00:02]} e6 {[%emt 0:00:01]} 4. Nf3 {[%emt 0:00:03]} Nf6 {[%emt 0:00:01]} 5. c3 {[%emt 0:00:03]} c6 {[%emt 0:00:05]} 6. Nbd2 {[%emt 0:00:03]} Bd6 {[%emt 0:00:02]} 7. Bg3 {[%emt 0:00:03]} O-O {[%emt 0:00:03]} 8. Be2 {[%emt 0:00:02]} Re8 {[%emt 0:00:02]} 9. Ne5 {[%emt 0:00:03]} Bc7 {[%emt 0:00:05]} 10. O-O {[%emt 0:00:04]} Nbd7 {[%emt 0:00:02]} 11. f4 {[%emt 0:00:02]} Ne4 {[%emt 0:00:09]} 12. Nxe4 {[%emt 0:00:02]} Bxe4 {[%emt 0:00:01]} 13. Bd3 {[%emt 0:00:02]} Bxd3 {[%emt 0:00:02]} 14. Qxd3 {[%emt 0:00:02]} f5 {[%emt 0:00:05]} 15. Qe2 {[%emt 0:00:04]} Nf6 {[%emt 0:00:03]} 16. Bh4 {[%emt 0:00:03]} Qe7 {[%emt 0:00:14]} 17. Qf3 {[%emt 0:00:04]} Qf8 {[%emt 0:00:05]} 18. Bxf6 {[%emt 0:00:06]} Qxf6 {[%emt 0:00:02]} 19. Qg3 {[%emt 0:00:03]} Bxe5 {[%emt 0:00:03]} 20. fxe5 {[%emt 0:00:02]} Qe7 {[%emt 0:00:02]} 21. Kh1 {[%emt 0:00:05]} Rac8 {[%emt 0:00:05]} 22. Qh3 {[%emt 0:00:02]} Qf7 {[%emt 0:00:04]} 23. g4 {[%emt 0:00:03]} g6 {[%emt 0:00:03]} 24. Rf2 {[%emt 0:00:02]} Kh8 {[%emt 0:00:29]} 25. Rg1 {[%emt 0:00:06]} Rg8 {[%emt 0:00:11]} 26. Qh4 {[%emt 0:00:12]} Rcf8 {[%emt 0:00:14]} 27. g5 {[%emt 0:00:04]} Qg7 {[%emt 0:00:04]} 28. Rg3 {[%emt 0:00:05]} Rc8 {[%emt 0:00:03]} 29. Rh3 {[%emt 0:00:03]} Rgf8 {[%emt 0:00:03]} 30. Qh6 {[%emt 0:00:03]} Qxh6 {[%emt 0:00:02]} 31. Rxh6 {[%emt 0:00:03]} Kg7 {[%emt 0:00:03]} 32. Rh3 {[%emt 0:00:05]} Rf7 {[%emt 0:00:04]} 33. Rg3 {[%emt 0:00:04]} c5 {[%emt 0:00:04]} 34. h4 {[%emt 0:00:05]} Rfc7 {[%emt 0:00:06]} 35. Rh2 {[%emt 0:00:04]} b6 {[%emt 0:00:04]} 36. h5 {[%emt 0:00:03]} Rh8 {[%emt 0:00:11]} 37. Rgh3 {[%emt 0:00:04]} Rcc8 {[%emt 0:00:05]} 38. Kg2 {[%emt 0:00:09]} Rcd8 {[%emt 0:00:05]} 39. Kg3 {[%emt 0:00:07]} Rc8 {[%emt 0:00:03]} 40. Kf4 {[%emt 0:00:03]} Rcd8 {[%emt 0:00:04]} 41. h6+ {[%emt 0:00:05]} Kf7 {[%emt 0:00:02]} 42. Rh1 {[%emt 0:00:02]} Rhe8 {[%emt 0:00:02]} 43. R3h2 {[%emt 0:00:02]} Rc8 {[%emt 0:00:01]} 44. Rd1 {[%emt 0:00:03]} Re7 {[%emt 0:00:02]} 45. Kf3 {[%emt 0:00:07]} c4 {[%emt 0:00:02]} 46. Ra1 {[%emt 0:00:11]} a6 {[%emt 0:00:05]} 47. Rd2 {[%emt 0:00:06]} Rb7 {[%emt 0:00:02]} 48. Ke2 {[%emt 0:00:04]} Rcb8 {[%emt 0:00:02]} 49. b3 {[%emt 0:00:07]} b5 {[%emt 0:00:01]} 50. Rc2 {[%emt 0:00:03]} Ke7 {[%emt 0:00:03]} 51. Kd2 {[%emt 0:00:02]} Kd7 {[%emt 0:00:02]} 52. b4 {[%emt 0:00:04]} Kc6 {[%emt 0:00:02]} 53. a4 {[%emt 0:00:03]} Rb6 {[%emt 0:00:10]} 54. Rca2 {[%emt 0:00:04]} R6b7 {[%emt 0:00:11]} 55. axb5+ {[%emt 0:00:05]} axb5 {[%emt 0:00:01]} 56. Ra6+ {[%emt 0:00:02]} Rb6 {[%emt 0:00:02]} 57. Ra7 {[%emt 0:00:02]} R6b7 {[%emt 0:00:02]} 58. R1a6+ {[%emt 0:00:03]} Kd7 {[%emt 0:00:03]} 59. Rxb7+ {[%emt 0:00:04]} Rxb7 {[%emt 0:00:02]} 60. Ra8 {[%emt 0:00:04]} Kc7 {[%emt 0:00:07]} 61. Kc2 {[%emt 0:00:02]} Kc6 {[%emt 0:00:01]} 62. Kb2 {[%emt 0:00:02]} Kc7 {[%emt 0:00:02]} 63. Re8 {[%emt 0:00:05]} Kd7 {[%emt 0:00:02]} 64. Rh8 {[%emt 0:00:02]} Kc6 {[%emt 0:00:03]} 65. Rg8 {[%emt 0:00:02]} Ra7 {[%emt 0:00:16]} 66. Rg7 {[%emt 0:00:03]} Ra8 {[%emt 0:00:01]} 67. Rxh7 {[%emt 0:00:02]} Rg8 {[%emt 0:00:09]} 68. Rg7 {[%emt 0:00:02]} Rh8 {[%emt 0:00:01]} 69. Rxg6 {[%emt 0:00:02]} Kd7 {[%emt 0:00:01]} 70. Rg7+ {[%emt 0:00:01]} Ke8 {[%emt 0:00:01]} 71. Rb7 {[%emt 0:00:02]} Rg8 {[%emt 0:00:06]} 72. h7 {[%emt 0:00:08]} Rf8 {[%emt 0:00:04]} 73. g6 {[%emt 0:00:03]} f4 {[%emt 0:00:04]} 74. Rb8+ {[%emt 0:00:03]} Ke7 {[%emt 0:00:01]} 75. Rxf8 {[%emt 0:00:02]} Kxf8 {[%emt 0:00:01]} 76. h8=Q+ {[%emt 0:00:03]} Ke7 {[%emt 0:00:01]} 77. exf4 {[%emt 0:00:02]} Kd7 {[%emt 0:00:02]} 78. Qg7+ {[%emt 0:00:02]} Kd8 {[%emt 0:00:01]} 79. Qf8+ {[%emt 0:00:02]} Kd7 {[%emt 0:00:02]} 80. g7 {[%emt 0:00:01]} Kc7 {[%emt 0:00:01]} 81. Qe7+ {[%emt 0:00:03]} Kb6 {[%emt 0:00:02]} 82. Qd6+ {[%emt 0:00:01]} Kb7 {[%emt 0:00:02]} 83. g8=Q {[%emt 0:00:03]} Ka7 {[%emt 0:00:01]} 84. Qgb8# {[%emt 0:00:02]} 1-0